[Event "13th Leiden Crown Group 2019"]
[Site "Leiden"]
[Date "2019.07.12"]
[Round "1.1"]
[White "Pijpers, Arthur"]
[Black "Kuipers, Stefan"]
[Result "1/2-1/2"]
[ECO "B12"]
[WhiteElo "2474"]
[BlackElo "2435"]
[Annotator "ChessBase"]
[PlyCount "81"]
[EventDate "2019.07.08"]
[EventType "tourn"]
[EventCountry "NED"]
[SourceTitle "playchess.com"]
[Source "ChessBase"]
[SourceQuality "1"]
[TimeControl "40/5400+30:1800+30"]

1. e4 {[%emt 0:00:00]} c6 {[%emt 0:00:00]} 2. d4 {[%emt 0:00:00]} d5 {[%emt 0:00:00]} 3. e5 {[%emt 0:00:25]} Bf5 {[%emt 0:00:00]} 4. Nf3 {[%emt 0:00:12]} e6 {[%emt 0:00:00]} 5. Be2 {[%emt 0:00:03]} Ne7 {[%emt 0:00:01]} 6. O-O {[%emt 0:00:59]} Ng6 {[%emt 0:00:16]} 7. Be3 {[%emt 0:04:39]} Nd7 {[%emt 0:00:30]} 8. Nbd2 {[%emt 0:02:50]} f6 {[%emt 0:00:17]} 9. exf6 {[%emt 0:07:39]} Qxf6 {[%emt 0:00:21]} 10. Ne1 {[%emt 0:12:50]} h5 {[%emt 0:13:46]} 11. Bxh5 {[%emt 0:12:02]} Qh4 {[%emt 0:05:56]} 12. Bxg6+ {[%emt 0:00:05]} Bxg6 {[%emt 0:00:05]} 13. h3 {[%emt 0:02:04]} Bd6 {[%emt 0:10:16]} 14. Ndf3 {[%emt 0:08:57]} Qf6 {[%emt 0:01:30]} 15. Qd2 {[%emt 0:08:14]} c5 {[%emt 0:20:03]} 16. dxc5 {[%emt 0:07:38]} Nxc5 {[%emt 0:02:04]} 17. Bd4 {[%emt 0:06:46]} Qf5 {[%emt 0:03:47]} 18. Qg5 {[%emt 0:05:02]} Qxg5 {[%emt 0:07:49]} 19. Nxg5 {[%emt 0:00:02]} e5 {[%emt 0:00:08]} 20. Bxc5 {[%emt 0:01:19]} Bxc5 {[%emt 0:00:07]} 21. Nd3 {[%emt 0:00:04]} Bxd3 {[%emt 0:01:10]} 22. cxd3 {[%emt 0:00:02]} Ke7 {[%emt 0:00:58]} 23. Nf3 {[%emt 0:02:29]} Bd6 {[%emt 0:00:24]} 24. Rfe1 {[%emt 0:02:11]} Kf6 {[%emt 0:01:09]} 25. Rac1 {[%emt 0:02:26]} Rac8 {[%emt 0:01:46]} 26. Kf1 {[%emt 0:01:48]} Rc6 {[%emt 0:02:01]} 27. Rxc6 {[%emt 0:02:23]} bxc6 {[%emt 0:00:06]} 28. d4 {[%emt 0:00:10]} e4 {[%emt 0:02:06]} 29. Nd2 {[%emt 0:00:04]} c5 {[%emt 0:00:40]} 30. f3 {[%emt 0:05:09]} Bf4 {[%emt 0:00:48]} 31. Rd1 {[%emt 0:02:46]} cxd4 {[%emt 0:09:22]} 32. fxe4 {[%emt 0:00:11]} Bxd2 {[%emt 0:00:49]} 33. Rxd2 {[%emt 0:00:06]} Ke5 {[%emt 0:00:06]} 34. exd5 {[%emt 0:00:04]} Kxd5 {[%emt 0:00:09]} 35. Ke1 {[%emt 0:02:38]} Rc8 {[%emt 0:04:09]} 36. Rf2 {[%emt 0:01:25]} Ke4 {[%emt 0:03:42]} 37. Re2+ {[%emt 0:01:31]} Kd3 {[%emt 0:00:07]} 38. Rd2+ {[%emt 0:00:15]} Ke3 {[%emt 0:00:06]} 39. Re2+ {[%emt 0:00:05]} Kd3 {[%emt 0:00:04]} 40. Re7 {[%emt 0:00:50]} Rc2 {[%emt 0:02:10]} 41. Rxg7 {[%emt 0:19:02]} 1/2-1/2

[Event "13th Leiden Crown Group 2019"]
[Site "Leiden"]
[Date "2019.07.12"]
[Round "1.3"]
[White "Pruijssers, Roeland"]
[Black "Van der Wiel, John T.H."]
[Result "1/2-1/2"]
[ECO "B90"]
[WhiteElo "2534"]
[BlackElo "2380"]
[Annotator "ChessBase"]
[PlyCount "42"]
[EventDate "2019.07.08"]
[EventType "tourn"]
[EventCountry "NED"]
[SourceTitle "playchess.com"]
[Source "ChessBase"]
[SourceQuality "1"]
[TimeControl "40/5400+30:1800+30"]

1. e4 {[%emt 0:00:00]} c5 {[%emt 0:00:00]} 2. Nf3 {[%emt 0:00:00]} d6 {[%emt 0:00:00]} 3. d4 {[%emt 0:00:00]} cxd4 {[%emt 0:00:00]} 4. Nxd4 {[%emt 0:00:00]} Nf6 {[%emt 0:00:10]} 5. Nc3 {[%emt 0:00:02]} a6 {[%emt 0:00:22]} 6. Be3 {[%emt 0:00:10]} e5 {[%emt 0:00:55]} 7. Nb3 {[%emt 0:00:09]} Be6 {[%emt 0:00:08]} 8. Qd2 {[%emt 0:00:07]} Nbd7 {[%emt 0:00:40]} 9. O-O-O {[%emt 0:00:13]} b5 {[%emt 0:01:41]} 10. f3 {[%emt 0:00:59]} Rc8 {[%emt 0:00:53]} 11. g4 {[%emt 0:07:38]} Nb6 {[%emt 0:01:42]} 12. g5 {[%emt 0:21:48]} Nh5 {[%emt 0:01:15]} 13. Qf2 {[%emt 0:13:15]} Rxc3 {[%emt 0:07:19]} 14. bxc3 {[%emt 0:00:13]} Na4 {[%emt 0:00:28]} 15. Qe1 {[%emt 0:03:48]} Qd7 {[%emt 0:49:20]} 16. Rd5 {[%emt 0:12:23]} Bxd5 {[%emt 0:05:40]} 17. exd5 {[%emt 0:00:47]} Be7 {[%emt 0:00:08]} 18. c4 {[%emt 0:01:05]} O-O {[%emt 0:04:28]} 19. Na5 {[%emt 0:16:25]} Nf4 {[%emt 0:04:47]} 20. h4 {[%emt 0:01:32]} Bd8 {[%emt 0:00:45]} 21. Nc6 {[%emt 0:09:13]} Bb6 {[%emt 0:04:32]} 1/2-1/2

[Event "13th Leiden Crown Group 2019"]
[Site "Leiden"]
[Date "2019.07.12"]
[Round "1.4"]
[White "Schekachikhin, Maksim"]
[Black "Das, Arghyadip"]
[Result "0-1"]
[ECO "D11"]
[WhiteElo "2415"]
[BlackElo "2439"]
[Annotator "ChessBase"]
[PlyCount "78"]
[EventDate "2019.07.08"]
[EventType "tourn"]
[EventCountry "NED"]
[SourceTitle "playchess.com"]
[Source "ChessBase"]
[SourceQuality "1"]
[TimeControl "40/5400+30:1800+30"]

1. d4 {[%emt 0:00:00]} d5 {[%emt 0:00:00]} 2. c4 {[%emt 0:00:00]} c6 {[%emt 0:00:19]} 3. Nf3 {[%emt 0:00:30]} dxc4 {[%emt 0:00:20]} 4. e3 {[%emt 0:04:11]} b5 {[%emt 0:03:25]} 5. a4 {[%emt 0:06:29]} e6 {[%emt 0:00:45]} 6. axb5 {[%emt 0:07:42]} cxb5 {[%emt 0:00:06]} 7. b3 {[%emt 0:00:05]} a5 {[%emt 0:05:38]} 8. bxc4 {[%emt 0:01:19]} Bb4+ {[%emt 0:07:43]} 9. Bd2 {[%emt 0:04:14]} Bxd2+ {[%emt 0:01:49]} 10. Nbxd2 {[%emt 0:03:10]} b4 {[%emt 0:09:26]} 11. c5 {[%emt 0:11:04]} Nf6 {[%emt 0:03:04]} 12. Bb5+ {[%emt 0:15:45]} Bd7 {[%emt 0:01:54]} 13. Qa4 {[%emt 0:01:55]} Nd5 {[%emt 0:16:33]} 14. Ne5 {[%emt 0:08:23]} O-O {[%emt 0:03:22]} 15. Nxd7 {[%emt 0:06:58]} Nc3 {[%emt 0:00:21]} 16. Qb3 {[%emt 0:01:52]} Nxd7 {[%emt 0:00:49]} 17. Bc6 {[%emt 0:01:09]} Ra6 {[%emt 0:12:27]} 18. Bb7 {[%emt 0:01:53]} Ra7 {[%emt 0:00:29]} 19. Bf3 {[%emt 0:01:33]} e5 {[%emt 0:03:19]} 20. c6 {[%emt 0:14:42]} Nb6 {[%emt 0:00:47]} 21. dxe5 {[%emt 0:03:42]} Qe7 {[%emt 0:01:09]} 22. O-O {[%emt 0:01:48]} a4 {[%emt 0:05:57]} 23. Qb2 {[%emt 0:00:13]} Rd8 {[%emt 0:00:46]} 24. Ne4 {[%emt 0:01:42]} Nc4 {[%emt 0:03:33]} 25. Qc2 {[%emt 0:00:09]} Nxe4 {[%emt 0:00:53]} 26. Bxe4 {[%emt 0:00:37]} Nd2 {[%emt 0:01:25]} 27. Rfd1 {[%emt 0:01:14]} b3 {[%emt 0:00:27]} 28. Bxh7+ {[%emt 0:00:44]} Kh8 {[%emt 0:01:30]} 29. Qc3 {[%emt 0:00:21]} Kxh7 {[%emt 0:00:47]} 30. Rxd2 {[%emt 0:00:07]} Rxd2 {[%emt 0:00:04]} 31. Qxd2 {[%emt 0:00:05]} Qxe5 {[%emt 0:00:05]} 32. Rb1 {[%emt 0:01:25]} a3 {[%emt 0:05:20]} 33. Qd3+ {[%emt 0:00:25]} g6 {[%emt 0:00:32]} 34. c7 {[%emt 0:00:41]} a2 {[%emt 0:01:27]} 35. c8=Q {[%emt 0:00:28]} axb1=Q+ {[%emt 0:00:10]} 36. Qxb1 {[%emt 0:00:05]} Ra1 {[%emt 0:00:12]} 37. Qcc1 {[%emt 0:00:38]} b2 {[%emt 0:01:04]} 38. Qd1 {[%emt 0:00:28]} Rxb1 {[%emt 0:00:10]} 39. Qxb1 {[%emt 0:00:08]} Qc3 {[%emt 0:00:04]} 0-1

[Event "13th Leiden Crown Group 2019"]
[Site "Leiden"]
[Date "2019.07.12"]
[Round "1.5"]
[White "Sengupta, Deep"]
[Black "Stefansson, Hannes"]
[Result "1/2-1/2"]
[ECO "C78"]
[WhiteElo "2558"]
[BlackElo "2562"]
[Annotator "ChessBase"]
[PlyCount "74"]
[EventDate "2019.07.08"]
[EventType "tourn"]
[EventCountry "NED"]
[SourceTitle "playchess.com"]
[Source "ChessBase"]
[SourceQuality "1"]
[TimeControl "40/5400+30:1800+30"]

1. e4 {[%emt 0:00:00]} e5 {[%emt 0:00:00]} 2. Nf3 {[%emt 0:00:00]} Nc6 {[%emt 0:00:00]} 3. Bb5 {[%emt 0:00:00]} a6 {[%emt 0:00:08]} 4. Ba4 {[%emt 0:00:00]} Nf6 {[%emt 0:00:11]} 5. O-O {[%emt 0:00:00]} b5 {[%emt 0:00:12]} 6. Bb3 {[%emt 0:00:02]} Bc5 {[%emt 0:00:18]} 7. a4 {[%emt 0:01:38]} Rb8 {[%emt 0:00:10]} 8. c3 {[%emt 0:00:08]} d6 {[%emt 0:00:19]} 9. d4 {[%emt 0:00:05]} Bb6 {[%emt 0:00:27]} 10. axb5 {[%emt 0:00:13]} axb5 {[%emt 0:00:11]} 11. Qd3 {[%emt 0:00:05]} O-O {[%emt 0:11:56]} 12. Bg5 {[%emt 0:00:22]} h6 {[%emt 0:09:51]} 13. Bxf6 {[%emt 0:19:22]} Qxf6 {[%emt 0:00:34]} 14. Qxb5 {[%emt 0:00:42]} Ne7 {[%emt 0:12:26]} 15. Qd3 {[%emt 0:14:57]} Ng6 {[%emt 0:01:08]} 16. g3 {[%emt 0:00:53]} Bh3 {[%emt 0:02:22]} 17. Re1 {[%emt 0:01:03]} Rfe8 {[%emt 0:11:52]} 18. Nbd2 {[%emt 0:01:56]} exd4 {[%emt 0:00:51]} 19. cxd4 {[%emt 0:00:10]} c5 {[%emt 0:00:46]} 20. Nc4 {[%emt 0:31:13]} cxd4 {[%emt 0:00:57]} 21. Nxb6 {[%emt 0:00:03]} Rxb6 {[%emt 0:00:11]} 22. Ra7 {[%emt 0:00:27]} Be6 {[%emt 0:04:53]} 23. Bxe6 {[%emt 0:00:03]} Rxe6 {[%emt 0:01:42]} 24. Nxd4 {[%emt 0:09:03]} Rxb2 {[%emt 0:00:26]} 25. Rf1 {[%emt 0:01:21]} Re7 {[%emt 0:07:29]} 26. Ra8+ {[%emt 0:03:41]} Kh7 {[%emt 0:01:42]} 27. Nf5 {[%emt 0:00:10]} Re6 {[%emt 0:00:59]} 28. Kg2 {[%emt 0:10:44]} Ne7 {[%emt 0:05:23]} 29. Nd4 {[%emt 0:01:38]} Re5 {[%emt 0:00:09]} 30. Nf3 {[%emt 0:00:19]} Rc5 {[%emt 0:03:58]} 31. Rb1 {[%emt 0:03:34]} Rcc2 {[%emt 0:03:20]} 32. e5+ {[%emt 0:01:29]} Qf5 {[%emt 0:00:14]} 33. Qxf5+ {[%emt 0:00:02]} Nxf5 {[%emt 0:00:07]} 34. Rxb2 {[%emt 0:00:01]} Rxb2 {[%emt 0:00:17]} 35. g4 {[%emt 0:01:19]} Ne3+ {[%emt 0:00:19]} 36. Kg3 {[%emt 0:00:01]} Nf1+ {[%emt 0:02:55]} 37. Kg2 {[%emt 0:00:02]} Ne3+ {[%emt 0:00:48]} 1/2-1/2

[Event "13th Leiden Crown Group 2019"]
[Site "Leiden"]
[Date "2019.07.13"]
[Round "2.2"]
[White "Das, Arghyadip"]
[Black "Sengupta, Deep"]
[Result "1/2-1/2"]
[ECO "C07"]
[WhiteElo "2439"]
[BlackElo "2558"]
[Annotator "ChessBase"]
[PlyCount "41"]
[EventDate "2019.07.08"]
[EventType "tourn"]
[EventCountry "NED"]
[SourceTitle "playchess.com"]
[Source "ChessBase"]
[SourceQuality "1"]
[TimeControl "40/5400+30:1800+30"]

1. e4 e6 2. d4 d5 3. Nd2 c5 4. Ngf3 cxd4 5. Nxd4 Nc6 6. Bb5 Bd7 7. Nxc6 bxc6 8. Bd3 Qc7 9. c4 Nf6 10. Qe2 Bd6 11. h3 O-O 12. O-O Rab8 13. b3 Be5 14. Rb1 dxe4 15. Nxe4 Nxe4 16. Bxe4 c5 17. Bb2 Bxb2 18. Rxb2 Bc6 19. Rd1 Bxe4 20. Qxe4 Rfd8 21. Rbd2 1/2-1/2

[Event "13th Leiden Crown Group 2019"]
[Site "Leiden"]
[Date "2019.07.13"]
[Round "2.3"]
[White "Van der Wiel, John T.H."]
[Black "Schekachikhin, Maksim"]
[Result "1/2-1/2"]
[ECO "B18"]
[WhiteElo "2380"]
[BlackElo "2415"]
[Annotator "NA"]
[PlyCount "69"]
[EventDate "2019.07.08"]
[EventType "tourn"]
[EventCountry "NED"]
[SourceTitle "playchess.com"]
[Source "ChessBase"]
[SourceQuality "1"]
[TimeControl "40/5400+30:1800+30"]

1. e4 {[%emt 0:00:00]} c6 {[%emt 0:00:00]} 2. d4 {[%emt 0:00:00]} d5 {[%emt 0:00:00]} 3. Nd2 {[%emt 0:00:09]} dxe4 {[%emt 0:00:16]} 4. Nxe4 {[%emt 0:00:11]} Bf5 {[%emt 0:00:18]} 5. Ng3 {[%emt 0:00:23]} Bg6 {[%emt 0:00:16]} 6. Nh3 {[%emt 0:01:50]} Nf6 {[%emt 0:01:15]} 7. Nf4 {[%emt 0:01:13]} Nbd7 {[%emt 0:02:30]} 8. h4 {[%emt 0:15:22]} e5 {[%emt 0:02:59]} 9. dxe5 {[%emt 0:02:14]} Qa5+ {[%emt 0:08:07]} 10. c3 {[%emt 0:01:54]} Qxe5+ {[%emt 0:01:47]} 11. Qe2 {[%emt 0:07:51]} Bc5 {[%emt 0:13:06]} 12. Nxg6 {[%emt 0:06:04]} hxg6 {[%emt 0:00:41]} 13. Bf4 {[%emt 0:02:19]} Qxe2+ {[%emt 0:05:13]} 14. Bxe2 {[%emt 0:00:20]} O-O-O {[%emt 0:04:10]} 15. Bg5 {[%emt 0:12:50]} Rde8 {[%emt 0:07:03]} 16. O-O {[%emt 0:05:21]} Nd5 {[%emt 0:14:15]} 17. Rad1 {[%emt 0:12:42]} f6 {[%emt 0:07:24]} 18. Bc1 {[%emt 0:01:56]} Rxh4 {[%emt 0:02:07]} 19. Bf3 {[%emt 0:02:10]} Nc7 {[%emt 0:05:43]} 20. Rfe1 {[%emt 0:08:34]} Rxe1+ {[%emt 0:04:09]} 21. Rxe1 {[%emt 0:00:12]} Ne5 {[%emt 0:01:37]} 22. Be4 {[%emt 0:01:50]} Nd5 {[%emt 0:07:10]} 23. Bc2 {[%emt 0:03:34]} Nf4 {[%emt 0:04:48]} 24. Re4 {[%emt 0:03:55]} g5 {[%emt 0:00:32]} 25. Nf5 {[%emt 0:03:00]} Rg4 {[%emt 0:01:09]} 26. Bxf4 {[%emt 0:03:02]} gxf4 {[%emt 0:01:25]} 27. Kf1 {[%emt 0:01:24]} g6 {[%emt 0:02:09]} 28. f3 {[%emt 0:02:57]} Nxf3 {[%emt 0:02:10]} 29. gxf3 {[%emt 0:00:03]} Rg1+ {[%emt 0:00:06]} 30. Ke2 {[%emt 0:00:08]} Rg2+ {[%emt 0:00:39]} 31. Kd3 {[%emt 0:00:24]} gxf5 {[%emt 0:00:51]} 32. Rxf4 {[%emt 0:00:29]} Rg5 {[%emt 0:00:39]} 33. Kc4 {[%emt 0:00:44]} Be3 {[%emt 0:00:16]} 34. Rxf5 {[%emt 0:00:19]} Rg2 {[%emt 0:01:30]} 35. Kb3 {[%emt 0:00:32]} 1/2-1/2

[Event "13th Leiden Crown Group 2019"]
[Site "Leiden"]
[Date "2019.07.13"]
[Round "2.4"]
[White "Lalith Babu M R"]
[Black "Pruijssers, Roeland"]
[Result "1-0"]
[ECO "D85"]
[WhiteElo "2580"]
[BlackElo "2534"]
[Annotator "ChessBase"]
[PlyCount "95"]
[EventDate "2019.07.08"]
[EventType "tourn"]
[EventCountry "NED"]
[SourceTitle "playchess.com"]
[Source "ChessBase"]
[SourceQuality "1"]
[TimeControl "40/5400+30:1800+30"]

1. d4 {[%emt 0:00:00]} Nf6 {[%emt 0:03:16]} 2. c4 {[%emt 0:00:00]} g6 {[%emt 0:00:12]} 3. Nc3 {[%emt 0:00:00]} d5 {[%emt 0:00:06]} 4. cxd5 {[%emt 0:00:00]} Nxd5 {[%emt 0:00:07]} 5. e4 {[%emt 0:00:00]} Nxc3 {[%emt 0:00:13]} 6. bxc3 {[%emt 0:00:02]} Bg7 {[%emt 0:00:06]} 7. Bb5+ {[%emt 0:00:04]} c6 {[%emt 0:11:35]} 8. Ba4 {[%emt 0:00:05]} O-O {[%emt 0:00:06]} 9. Ne2 {[%emt 0:00:05]} c5 {[%emt 0:03:42]} 10. O-O {[%emt 0:00:31]} b6 {[%emt 0:00:46]} 11. Be3 {[%emt 0:20:37]} Ba6 {[%emt 0:05:57]} 12. Rb1 {[%emt 0:10:20]} Qc8 {[%emt 0:16:34]} 13. Re1 {[%emt 0:11:39]} Nc6 {[%emt 0:07:00]} 14. Nf4 {[%emt 0:04:00]} e6 {[%emt 0:10:43]} 15. d5 {[%emt 0:04:19]} Ne5 {[%emt 0:03:50]} 16. dxe6 {[%emt 0:01:14]} fxe6 {[%emt 0:00:25]} 17. Qd6 {[%emt 0:01:07]} Bc4 {[%emt 0:01:00]} 18. Bb3 {[%emt 0:00:42]} Kf7 {[%emt 0:02:42]} 19. Nh3 {[%emt 0:12:13]} Kg8 {[%emt 0:17:02]} 20. Ng5 {[%emt 0:04:18]} Re8 {[%emt 0:01:33]} 21. Bf4 {[%emt 0:04:56]} Bxb3 {[%emt 0:00:08]} 22. axb3 {[%emt 0:00:20]} Nc6 {[%emt 0:02:18]} 23. Qd3 {[%emt 0:00:45]} h6 {[%emt 0:01:22]} 24. Nf3 {[%emt 0:00:19]} Rd8 {[%emt 0:01:04]} 25. Qe3 {[%emt 0:09:10]} g5 {[%emt 0:00:22]} 26. Bg3 {[%emt 0:00:12]} Qa6 {[%emt 0:01:01]} 27. c4 {[%emt 0:01:07]} Nb4 {[%emt 0:03:57]} 28. Red1 {[%emt 0:00:54]} Qa2 {[%emt 0:00:11]} 29. Ne5 {[%emt 0:02:36]} Bxe5 {[%emt 0:01:48]} 30. Bxe5 {[%emt 0:00:08]} Rd3 {[%emt 0:00:05]} 31. Qe1 {[%emt 0:01:19]} Rad8 {[%emt 0:00:01]} 32. h4 {[%emt 0:00:14]} gxh4 {[%emt 0:03:49]} 33. Bf6 {[%emt 0:01:42]} R8d7 {[%emt 0:00:39]} 34. e5 {[%emt 0:00:41]} R7d4 {[%emt 0:01:03]} 35. Ra1 {[%emt 0:02:15]} Qxb3 {[%emt 0:01:26]} 36. Rxd3 {[%emt 0:00:18]} Qxd3 {[%emt 0:00:51]} 37. Qc1 {[%emt 0:00:15]} Qd2 {[%emt 0:00:34]} 38. Qa3 {[%emt 0:00:08]} a5 {[%emt 0:00:55]} 39. Qf3 {[%emt 0:00:19]} Qd3 {[%emt 0:00:30]} 40. Qh5 {[%emt 0:04:22]} Rd7 {[%emt 0:00:27]} 41. Qe8+ {[%emt 0:30:42]} Kh7 {[%emt 0:30:05]} 42. Be7 {[%emt 0:00:33]} Kg7 {[%emt 0:00:47]} 43. Qf8+ {[%emt 0:00:28]} Kg6 {[%emt 0:00:07]} 44. Qf6+ {[%emt 0:00:04]} Kh5 {[%emt 0:00:06]} 45. Qxh4+ {[%emt 0:00:04]} Kg6 {[%emt 0:00:06]} 46. Qf6+ {[%emt 0:00:04]} Kh5 {[%emt 0:00:05]} 47. Qxe6 {[%emt 0:00:29]} Rd4 {[%emt 0:00:37]} 48. Ra3 {[%emt 0:03:46]} 1-0

[Event "13th Leiden Crown Group 2019"]
[Site "Leiden"]
[Date "2019.07.13"]
[Round "2.5"]
[White "Pijpers, Arthur"]
[Black "Nikolic, Predrag"]
[Result "0-1"]
[ECO "C50"]
[WhiteElo "2474"]
[BlackElo "2574"]
[Annotator "ChessBase"]
[PlyCount "78"]
[EventDate "2019.07.08"]
[EventType "tourn"]
[EventCountry "NED"]
[SourceTitle "playchess.com"]
[Source "ChessBase"]
[SourceQuality "1"]
[TimeControl "40/5400+30:1800+30"]

1. e4 {[%emt 0:00:00]} e5 {[%emt 0:00:00]} 2. Nf3 {[%emt 0:00:00]} Nc6 {[%emt 0:00:00]} 3. Bc4 {[%emt 0:00:00]} Nf6 {[%emt 0:00:01]} 4. d4 {[%emt 0:00:00]} exd4 {[%emt 0:02:28]} 5. O-O {[%emt 0:00:04]} d6 {[%emt 0:04:55]} 6. Nxd4 {[%emt 0:05:05]} Be7 {[%emt 0:00:53]} 7. Nc3 {[%emt 0:00:07]} O-O {[%emt 0:00:20]} 8. h3 {[%emt 0:00:03]} Re8 {[%emt 0:04:31]} 9. Nxc6 {[%emt 0:01:00]} bxc6 {[%emt 0:00:08]} 10. Qf3 {[%emt 0:00:06]} Bf8 {[%emt 0:10:05]} 11. Bg5 {[%emt 0:28:51]} Be6 {[%emt 0:00:16]} 12. Bb3 {[%emt 0:00:05]} Be7 {[%emt 0:01:18]} 13. Ba4 {[%emt 0:22:32]} Nd7 {[%emt 0:02:21]} 14. Bxe7 {[%emt 0:04:27]} Rxe7 {[%emt 0:00:23]} 15. Qg3 {[%emt 0:02:28]} Rb8 {[%emt 0:01:25]} 16. f4 {[%emt 0:00:41]} Bc4 {[%emt 0:10:07]} 17. Rf2 {[%emt 0:01:11]} Rb6 {[%emt 0:03:27]} 18. Bb3 {[%emt 0:03:10]} Ba6 {[%emt 0:01:34]} 19. Rd1 {[%emt 0:03:15]} Qe8 {[%emt 0:07:48]} 20. e5 {[%emt 0:06:27]} Nc5 {[%emt 0:08:01]} 21. Rfd2 {[%emt 0:05:31]} Nxb3 {[%emt 0:11:15]} 22. axb3 {[%emt 0:00:02]} d5 {[%emt 0:00:59]} 23. Ne4 {[%emt 0:01:24]} Qf8 {[%emt 0:00:16]} 24. Nc5 {[%emt 0:01:19]} Bc8 {[%emt 0:00:36]} 25. Ra1 {[%emt 0:05:54]} Re8 {[%emt 0:03:38]} 26. Qf2 {[%emt 0:00:17]} Rb5 {[%emt 0:01:26]} 27. Nd3 {[%emt 0:00:56]} a5 {[%emt 0:00:35]} 28. f5 {[%emt 0:01:50]} d4 {[%emt 0:02:18]} 29. g4 {[%emt 0:01:01]} Rd5 {[%emt 0:01:58]} 30. Ra4 {[%emt 0:02:19]} Ba6 {[%emt 0:04:28]} 31. Rxd4 {[%emt 0:02:34]} Bxd3 {[%emt 0:00:15]} 32. R4xd3 {[%emt 0:00:35]} Rdxe5 {[%emt 0:05:03]} 33. Rd7 {[%emt 0:00:03]} h6 {[%emt 0:00:30]} 34. Qd4 {[%emt 0:01:51]} h5 {[%emt 0:03:01]} 35. Rxc7 {[%emt 0:01:37]} hxg4 {[%emt 0:04:31]} 36. hxg4 {[%emt 0:00:21]} Rd5 {[%emt 0:00:18]} 37. Qf2 {[%emt 0:00:11]} Qb4 {[%emt 0:01:25]} 38. Rxd5 {[%emt 0:00:55]} Qxg4+ {[%emt 0:00:09]} 39. Kh2 {[%emt 0:00:30]} cxd5 {[%emt 0:00:15]} 0-1

[Event "13th Leiden Crown Group 2019"]
[Site "Leiden"]
[Date "2019.07.14"]
[Round "3.6"]
[White "Van Vliet, Jeffrey"]
[Black "Chanda, Sandipan"]
[Result "0-1"]
[ECO "B50"]
[WhiteElo "2380"]
[BlackElo "2516"]
[Annotator "ChessBase"]
[PlyCount "96"]
[EventDate "2019.07.08"]
[EventType "tourn"]
[EventCountry "NED"]
[SourceTitle "playchess.com"]
[Source "ChessBase"]
[SourceQuality "1"]
[TimeControl "40/5400+30:1800+30"]

1. e4 {[%emt 0:00:00]} c5 {[%emt 0:00:00]} 2. Nf3 {[%emt 0:00:00]} d6 {[%emt 0:00:00]} 3. c3 {[%emt 0:00:29]} Nf6 {[%emt 0:00:02]} 4. Be2 {[%emt 0:00:47]} Bd7 {[%emt 0:02:21]} 5. d3 {[%emt 0:00:16]} Bc6 {[%emt 0:03:52]} 6. O-O {[%emt 0:02:18]} Nbd7 {[%emt 0:00:22]} 7. Nbd2 {[%emt 0:02:43]} e6 {[%emt 0:03:07]} 8. Re1 {[%emt 0:04:12]} Be7 {[%emt 0:00:15]} 9. Bf1 {[%emt 0:00:08]} Ne5 {[%emt 0:10:45]} 10. d4 {[%emt 0:08:27]} Nxf3+ {[%emt 0:00:19]} 11. Qxf3 {[%emt 0:00:16]} cxd4 {[%emt 0:09:05]} 12. cxd4 {[%emt 0:00:21]} Qb6 {[%emt 0:05:06]} 13. Qd3 {[%emt 0:10:08]} O-O {[%emt 0:01:58]} 14. Nc4 {[%emt 0:05:58]} Qd8 {[%emt 0:00:37]} 15. e5 {[%emt 0:06:27]} dxe5 {[%emt 0:08:42]} 16. Nxe5 {[%emt 0:02:21]} Rc8 {[%emt 0:04:46]} 17. Bd2 {[%emt 0:08:20]} a6 {[%emt 0:10:54]} 18. a4 {[%emt 0:14:04]} Qd5 {[%emt 0:04:41]} 19. Nxc6 {[%emt 0:08:14]} Qxc6 {[%emt 0:01:27]} 20. g3 {[%emt 0:01:33]} Nd5 {[%emt 0:01:16]} 21. Bg2 {[%emt 0:00:29]} Bf6 {[%emt 0:00:20]} 22. Rec1 {[%emt 0:04:15]} Qd7 {[%emt 0:00:29]} 23. a5 {[%emt 0:01:30]} Rfd8 {[%emt 0:01:45]} 24. h4 {[%emt 0:04:13]} h6 {[%emt 0:04:41]} 25. Kh2 {[%emt 0:01:45]} Ne7 {[%emt 0:02:50]} 26. Rxc8 {[%emt 0:02:47]} Rxc8 {[%emt 0:00:53]} 27. Bc3 {[%emt 0:03:00]} Nd5 {[%emt 0:02:32]} 28. Re1 {[%emt 0:03:47]} Qb5 {[%emt 0:04:07]} 29. Qxb5 {[%emt 0:02:36]} axb5 {[%emt 0:00:06]} 30. Bxd5 {[%emt 0:00:48]} exd5 {[%emt 0:00:03]} 31. Re3 {[%emt 0:01:01]} h5 {[%emt 0:04:57]} 32. Kg2 {[%emt 0:00:10]} Kh7 {[%emt 0:00:13]} 33. Kf3 {[%emt 0:00:19]} Kg6 {[%emt 0:00:18]} 34. Rd3 {[%emt 0:02:21]} Kf5 {[%emt 0:04:02]} 35. Bb4 {[%emt 0:00:04]} Rc2 {[%emt 0:02:54]} 36. b3 {[%emt 0:00:12]} Ra2 {[%emt 0:01:23]} 37. Ke3 {[%emt 0:00:52]} Kg4 {[%emt 0:02:33]} 38. Rc3 {[%emt 0:00:44]} g5 {[%emt 0:01:16]} 39. Rc5 {[%emt 0:01:03]} gxh4 {[%emt 0:00:33]} 40. gxh4 {[%emt 0:00:13]} Rb2 {[%emt 0:02:10]} 41. f3+ {[%emt 0:03:56]} Kh3 {[%emt 0:00:18]} 42. Rxb5 {[%emt 0:02:16]} Rxb3+ {[%emt 0:00:27]} 43. Kf4 {[%emt 0:00:06]} Be7 {[%emt 0:03:54]} 44. Rxb7 {[%emt 0:00:17]} Bxb4 {[%emt 0:00:18]} 45. a6 {[%emt 0:00:40]} Bd6+ {[%emt 0:02:54]} 46. Kg5 {[%emt 0:00:24]} Rxb7 {[%emt 0:01:38]} 47. axb7 {[%emt 0:00:05]} Kg3 {[%emt 0:00:16]} 48. Kxh5 {[%emt 0:00:06]} Bf4 {[%emt 0:00:34]} 0-1